bitfinex/quotes_SOLUSD_20260304
["timestamp","ask_amount","ask_price","bid_price","bid_amount"]
[1772646671914,4.49283637,91.867,91.805,3.69383402]
[1772646672107,10.88518308,91.868,91.806,4.2065064]
[1772646672299,4.49283637,91.896,91.808,4.2065064]
[1772646672502,4.49283637,91.896,91.811,4.49082954]
[1772646673001,4.49283637,91.912,91.818,4.2065064]
[1772646673202,4.49283637,91.912,91.82,4.2065064]
[1772646673405,4.49283637,91.91,91.828,4.2065064]
[1772646673601,4.49283637,91.91,91.83,4.2065064]
[1772646673911,4.49283637,91.91,91.832,4.2065064]
[1772646674120,4.49283637,91.91,91.834,4.2065064]
[1772646674417,4.49283637,91.91,91.836,4.2065064]
[1772646674718,4.49283637,91.91,91.836,4.60631873]
[1772646675998,15.37316365,91.909,91.838,4.2065064]
[1772646676197,4.49283637,91.908,91.838,4.2065064]
[1772646677404,4.49283637,91.908,91.841,4.2065064]
[1772646678113,4.49283637,91.906,91.846,4.2065064]
[1772646680416,4.21281869,91.904,91.848,4.3263084]
[1772646681913,4.21281869,91.904,91.842,10.88820448]
[1772646682202,4.21281869,91.889,91.834,15.21550319]
[1772646682625,4.21281869,91.887,91.834,15.21550319]
[1772646682822,4.21281869,91.887,91.835,4.3263084]
[1772646683605,4.21281869,91.887,91.834,10.88919479]
[1772646684012,4.21281869,91.887,91.826,10.89016182]
[1772646684431,4.21281869,91.887,91.827,4.3263084]
[1772646685024,4.21281869,91.887,91.826,10.89016182]
[1772646685025,4.21281869,91.885,91.829,4.3263084]
[1772646685330,4.21281869,91.885,91.828,10.88992464]
[1772646685825,4.21281869,91.885,91.828,15.25671341]
[1772646686019,4.2868704,91.883,91.829,4.36678877]
[1772646688028,4.2868704,91.881,91.826,10.89012819]
[1772646688417,4.2868704,91.881,91.827,4.36678877]
[1772646690126,4.2868704,91.879,91.829,4.36678877]
[1772646690931,4.2868704,91.879,91.827,7.9]
[1772646692129,4.2868704,91.877,91.824,10.89030722]
[1772646693939,4.2868704,91.875,91.824,4.36678877]
[1772646695945,4.2868704,91.875,91.8,4.36678877]
[1772646696142,4.2868704,91.873,91.802,4.36678877]
[1772646697641,92.51801378,91.874,91.802,4.36678877]
[1772646697642,4.2868704,91.869,91.802,4.36678877]
[1772646698236,4.82477569,91.872,91.799,0.7796523]
[1772646698237,4.2868704,91.859,91.799,0.7796523]
[1772646699230,4.2868704,91.859,91.792,4.36678877]
[1772646699231,8.76851651,91.84,91.783,4.36678877]
[1772646699441,4.2868704,91.839,91.783,4.36678877]
[1772646699742,4.2868704,91.839,91.769,49.0]
[1772646699743,4.2868704,91.829,91.77,4.36678877]
[1772646699946,4.2868704,91.829,91.771,4.36678877]
[1772646700146,4.2868704,91.827,91.773,4.36678877]
[1772646700929,10.88949214,91.832,91.773,4.36678877]
[1772646701943,4.82477569,91.879,91.772,92.62084293]
[1772646701944,10.88802752,91.844,91.776,4.36678877]
[1772646702250,10.88802752,91.844,91.775,3.69383402]
[1772646702251,10.88802752,91.844,91.781,4.36678877]
[1772646702443,10.88684216,91.854,91.781,4.36678877]
[1772646702831,38.10394756,91.854,91.781,4.36678877]
[1772646703033,4.2868704,91.853,91.781,4.36678877]
[1772646704349,4.2868704,91.851,91.786,4.36678877]
[1772646705234,30.0,91.826,91.786,4.36678877]
[1772646706334,30.0,91.826,91.788,4.36678877]
[1772646706532,10.89028042,91.825,91.788,4.36678877]
[1772646706750,30.0,91.822,91.788,4.36678877]
[1772646707735,34.2868704,91.822,91.788,4.36678877]
[1772646707934,30.0,91.822,91.788,4.36678877]
[1772646708536,30.0,91.822,91.79,4.32033294]
[1772646709031,10.88731627,91.85,91.791,4.32033294]
[1772646709349,4.16577531,91.849,91.791,4.32033294]
[1772646710551,4.16577531,91.847,91.793,4.32033294]
[1772646712857,4.16577531,91.845,91.776,4.32033294]
[1772646713155,4.16577531,91.818,91.776,4.32033294]
[1772646714255,4.16577531,91.816,91.776,4.32033294]
[1772646714750,4.16577531,91.814,91.778,4.32033294]
[1772646715454,4.16577531,91.811,91.778,4.32033294]
[1772646715839,10.89205968,91.81,91.779,10.89573867]
[1772646716060,10.89205968,91.81,91.78,4.32033294]
[1772646716355,30.0,91.809,91.78,4.32033294]
[1772646717358,34.16577531,91.809,91.78,4.32033294]
[1772646717554,4.16577531,91.808,91.78,4.32033294]
[1772646717860,38.1222089,91.81,91.745,4.32033294]
[1772646717861,4.16577531,91.804,91.745,4.32033294]
[1772646718746,4.16577531,91.799,91.745,4.32033294]
[1772646719852,4.16577531,91.793,91.747,4.32033294]
[1772646720065,4.16577531,91.793,91.74,10.90036942]
[1772646720259,4.16577531,91.793,91.738,4.32033294]
[1772646720863,4.16577531,91.779,91.721,4.32033294]
[1772646721870,4.16577531,91.774,91.73,4.52033294]
[1772646722058,4.16577531,91.772,91.73,4.52033294]
[1772646722257,4.16577531,91.772,91.73,0.2]
[1772646722457,38.13757858,91.773,91.703,4.32033294]
[1772646722458,4.16577531,91.767,91.703,4.32033294]
[1772646722665,8.76851651,91.75,91.694,4.32033294]
[1772646722865,4.16577531,91.746,91.694,15.22617192]
[1772646723172,4.16577531,91.746,91.695,4.32033294]
[1772646723964,4.16577531,91.742,91.695,4.32033294]
[1772646724152,10.90013298,91.742,91.697,4.32033294]
[1772646724349,4.16577531,91.741,91.697,4.32033294]
[1772646724563,4.16577531,91.741,91.67,0.2]
[1772646724564,4.16577531,91.741,91.686,4.32033294]
[1772646724863,4.16577531,91.741,91.67,0.2]
[1772646724864,4.16577531,91.731,91.677,4.32033294]
[1772646725065,4.16577531,91.729,91.67,0.2]
[1772646725259,4.16577531,91.729,91.676,4.32033294]
[1772646725769,30.0,91.737,91.67,0.2]
[1772646725770,4.16577531,91.723,91.67,0.2]
[1772646726067,4.16577531,91.72,91.67,0.2]
[1772646726249,4.16577531,91.718,91.67,0.2]
[1772646727052,4.16577531,91.713,91.67,0.2]
[1772646727264,4.16577531,91.713,91.674,4.32033294]
[1772646728163,4.16577531,91.71,91.674,4.32033294]
[1772646728366,4.16577531,91.708,91.673,4.32033294]
[1772646728565,10.90405521,91.709,91.681,4.32033294]
[1772646728865,10.90405521,91.709,91.682,4.32033294]
[1772646729053,4.16577531,91.708,91.67,0.2]
[1772646729382,4.16577531,91.703,91.67,0.2]
[1772646729578,30.0,91.704,91.672,4.32033294]
[1772646730169,30.0,91.701,91.672,4.32033294]
[1772646730866,10.90274749,91.72,91.674,4.32033294]
[1772646731054,10.90221383,91.725,91.674,4.32033294]
[1772646731666,4.16577531,91.724,91.674,4.32033294]
[1772646732365,4.16577531,91.724,91.67,0.2]
[1772646732566,4.16577531,91.722,91.67,0.2]
[1772646732770,30.0,91.7,91.67,4.52033294]
[1772646732948,30.0,91.7,91.671,10.90857523]
[1772646732949,10.90524433,91.699,91.671,10.90857523]
[1772646733476,10.90524433,91.699,91.67,4.52033294]
[1772646733773,4.16577531,91.698,91.67,0.2]
[1772646734175,34.16577531,91.696,91.67,0.2]
[1772646734473,34.16577531,91.696,91.636,3.69383402]
[1772646734474,0.93894051,91.679,91.606,4.32033294]
[1772646734673,4.16577531,91.667,91.606,4.32033294]
[1772646734973,4.16577531,91.665,91.606,4.32033294]
[1772646735177,4.16577531,91.66,91.606,4.32033294]
[1772646735892,4.82477569,91.657,91.606,4.32033294]
[1772646736172,4.82477569,91.657,91.588,10.91846093]
[1772646736173,4.16577531,91.64,91.588,10.91846093]
[1772646736473,4.16577531,91.64,91.588,38.21461326]
[1772646737272,30.0,91.636,91.588,38.21461326]
[1772646737978,30.0,91.636,91.589,4.32033294]
[1772646738487,30.0,91.636,91.554,0.33817427]
[1772646738488,4.47168862,91.609,91.554,0.33817427]
[1772646738777,4.47168862,91.607,91.562,4.16345377]
[1772646739279,4.47168862,91.605,91.562,4.16345377]
[1772646739573,4.47168862,91.599,91.554,0.33817427]
[1772646740356,4.47168862,91.599,91.554,4.50162804]
[1772646740561,4.47168862,91.599,91.554,0.33817427]
[1772646740780,81.87236643,91.606,91.55,1e-08]
[1772646740781,4.47168862,91.596,91.55,1e-08]
[1772646741493,4.47168862,91.588,91.54,1e-08]
[1772646741657,30.0,91.583,91.54,1e-08]
[1772646741856,4.47168862,91.578,91.54,1e-08]
[1772646742058,4.82477569,91.575,91.52,0.2]
[1772646742253,30.0,91.583,91.52,0.2]
[1772646742254,4.47168862,91.568,91.52,0.2]
[1772646742461,4.47168862,91.566,91.475,10.93194861]
[1772646742685,4.47168862,91.566,91.478,3.69383402]
[1772646742871,4.47168862,91.56,91.486,5.68349985]
[1772646743073,4.47168862,91.56,91.478,3.69383402]
[1772646743264,4.47168862,91.558,91.482,3.69383402]
[1772646743961,4.47168862,91.553,91.482,3.69383402]
[1772646744183,4.47168862,91.553,91.483,4.16345377]
[1772646744785,4.47168862,91.55,91.483,4.16345377]
[1772646745289,4.47168862,91.548,91.487,3.69383402]
[1772646745580,4.47168862,91.548,91.488,4.16345377]
[1772646745782,4.40776511,91.545,91.488,4.16345377]
[1772646746591,30.0,91.546,91.488,4.16345377]
[1772646746898,10.92254345,91.554,91.488,4.16345377]
[1772646747461,10.92254345,91.554,91.493,4.46145747]
[1772646747964,15.33030856,91.554,91.493,4.46145747]
[1772646748610,10.92254345,91.554,91.493,4.46145747]
[1772646749714,4.40776511,91.563,91.498,4.46145747]
[1772646750496,4.40776511,91.549,91.494,15.39113591]
[1772646750695,4.40776511,91.549,91.495,4.46145747]
[1772646750904,4.40776511,91.542,91.495,4.46145747]
[1772646751301,4.40776511,91.542,91.482,4.46145747]
[1772646751923,4.40776511,91.539,91.485,4.46145747]
[1772646752912,4.40776511,91.536,91.485,4.46145747]
[1772646753887,4.40776511,91.534,91.487,4.46145747]
[1772646754816,4.40776511,91.532,91.487,4.46145747]
[1772646756011,43.68798125,91.559,91.474,0.33847002]
[1772646756012,40.92526029,91.531,91.489,4.46145747]
[1772646756211,68.23841102,91.531,91.489,4.46145747]
[1772646756394,4.40776511,91.53,91.489,4.46145747]
[1772646757899,10.92442482,91.538,91.491,4.46145747]
[1772646758610,15.33218993,91.538,91.491,4.46145747]
[1772646759000,4.40776511,91.537,91.491,4.46145747]
[1772646760616,4.40776511,91.535,91.493,4.46145747]
[1772646762020,4.40776511,91.535,91.483,4.46145747]
[1772646762597,4.40776511,91.533,91.485,4.46145747]
[1772646762792,30.0,91.528,91.485,4.46145747]
[1772646763027,4.40776511,91.527,91.485,4.46145747]
[1772646764629,4.40776511,91.525,91.486,10.93063419]
[1772646764822,4.40776511,91.525,91.487,4.46145747]
[1772646765725,10.92585713,91.526,91.487,4.46145747]
[1772646766226,4.40776511,91.525,91.487,4.46145747]
[1772646766631,4.40776511,91.523,91.488,10.93039524]
[1772646766942,4.40776511,91.523,91.489,4.46145747]
[1772646767636,30.0,91.528,91.489,4.46145747]
[1772646768130,10.92514171,91.532,91.489,4.46145747]
[1772646768310,4.40776511,91.531,91.489,4.46145747]
[1772646768832,10.92514171,91.532,91.489,4.46145747]
[1772646768833,4.11843313,91.529,91.49,10.9301563]
[1772646769126,4.11843313,91.529,91.485,14.99719232]
[1772646769331,4.11843313,91.529,91.486,4.06647136]
[1772646769715,4.11843313,91.538,91.486,4.06647136]
[1772646770222,54.60778899,91.563,91.485,10.93072096]
[1772646770223,4.11843313,91.576,91.491,4.06647136]
[1772646770427,15.0383248,91.576,91.491,4.06647136]
[1772646770637,4.11843313,91.575,91.491,4.06647136]
[1772646770932,4.11843313,91.573,91.501,4.06647136]
[1772646773018,10.91937274,91.581,91.512,4.06647136]
[1772646773529,4.11843313,91.58,91.512,4.06647136]
[1772646775032,4.11843313,91.578,91.517,4.06647136]
[1772646775614,10.91893142,91.585,91.517,4.06647136]
[1772646775938,4.11843313,91.582,91.517,4.06647136]
[1772646776914,38.2166996,91.583,91.517,4.06647136]
[1772646777115,38.2166996,91.583,91.491,43.71980481]
[1772646777116,4.11843313,91.582,91.522,4.06647136]
[1772646778839,4.11843313,91.582,91.527,4.06647136]
[1772646779030,4.11843313,91.582,91.526,3.69383402]
[1772646779031,4.11843313,91.592,91.531,4.06647136]
[1772646780352,4.11843313,91.592,91.526,3.69383402]
[1772646780528,4.11843313,91.579,91.523,10.92621526]
[1772646780726,4.11843313,91.579,91.524,4.06647136]
[1772646780926,4.11843313,91.577,91.526,4.06647136]
[1772646781833,4.11843313,91.577,91.529,4.06647136]
[1772646782341,4.11843313,91.577,91.525,10.9259765]
[1772646782740,4.11843313,91.618,91.531,4.06647136]
[1772646782936,4.11843313,91.616,91.536,4.06647136]
[1772646783946,4.11843313,91.638,91.554,4.06647136]
[1772646784140,4.11843313,91.638,91.572,4.06647136]
[1772646784840,4.11843313,91.648,91.581,4.06647136]
[1772646785231,15.02835861,91.66,91.581,4.06647136]
[1772646785432,4.11843313,91.659,91.581,4.06647136]
[1772646786138,4.11843313,91.659,91.585,4.06647136]
[1772646786343,4.11843313,91.658,91.597,4.06647136]
[1772646787044,4.11843313,91.656,91.601,3.69383402]
[1772646787829,4.11843313,91.656,91.602,4.06647136]
[1772646789145,4.11843313,91.656,91.604,4.06647136]
[1772646790133,4.11843313,91.666,91.607,4.06647136]
[1772646790535,4.11843313,91.666,91.603,38.20835561]
[1772646791232,8.80639913,91.67,91.603,38.20835561]
[1772646791233,4.11843313,91.664,91.603,38.20835561]
[1772646791655,4.11843313,91.664,91.603,42.27482697]
[1772646792039,4.11843313,91.664,91.604,4.06647136]
[1772646792550,38.18251239,91.665,91.596,10.91749315]
[1772646792551,4.11843313,91.659,91.596,10.91749315]
[1772646793236,8.80639913,91.66,91.59,31.36190318]
[1772646793237,4.11843313,91.657,91.59,31.36190318]
[1772646793643,4.11843313,91.657,91.591,4.06647136]
[1772646793844,4.11843313,91.687,91.603,4.06647136]
[1772646794063,10.9051254,91.7,91.622,4.06647136]
[1772646794064,4.11843313,91.699,91.622,4.06647136]
[1772646794646,4.11843313,91.699,91.632,4.06647136]
[1772646795155,1.7267813,91.699,91.632,4.06647136]
[1772646795457,1.7267813,91.699,91.637,4.06647136]
[1772646795752,10.90510788,91.701,91.637,4.06647136]
[1772646795953,27.25271885,91.734,91.641,4.06647136]
[1772646796131,27.25271885,91.734,91.651,4.06647136]
[1772646797258,4.11843313,91.733,91.651,4.06647136]
[1772646797760,0.1,91.74,91.656,4.06647136]
[1772646797761,4.11843313,91.731,91.656,4.06647136]
[1772646798846,4.11843313,91.731,91.652,38.18792824]
[1772646799155,4.35637921,91.729,91.652,38.18792824]
[1772646799337,4.35637921,91.729,91.653,4.35889725]
[1772646799748,4.35637921,91.727,91.655,4.35889725]
[1772646800636,4.35637921,91.727,91.658,4.35889725]
[1772646800838,10.9010574,91.735,91.663,4.35889725]
[1772646801048,0.1,91.74,91.674,4.35889725]
[1772646801245,10.89811353,91.759,91.71,4.35889725]
[1772646801854,0.1,91.76,91.711,15.26271467]
[1772646802059,26.03932604,91.763,91.711,15.26271467]
[1772646802561,10.89692597,91.769,91.712,4.35889725]
[1772646803061,4.35637921,91.768,91.712,4.35889725]
[1772646803759,38.14007213,91.767,91.713,10.90357964]
[1772646803940,4.35637921,91.766,91.713,15.26247689]
[1772646804569,4.35637921,91.766,91.714,4.35889725]
[1772646806046,4.46584231,91.764,91.716,4.2680717]
[1772646806246,4.46584231,91.764,91.715,10.90334187]
[1772646807261,4.46584231,91.764,91.703,10.90466444]
[1772646808163,4.46584231,91.762,91.7,4.2680717]
[1772646808360,4.46584231,91.762,91.696,38.1696039]
[1772646808870,4.46584231,91.762,91.696,42.4376756]
[1772646809058,4.46584231,91.762,91.697,4.2680717]
[1772646811068,0.95084451,91.77,91.696,38.1696039]
[1772646811069,4.46584231,91.76,91.699,4.2680717]
[1772646813366,4.46584231,91.76,91.698,38.16877139]
[1772646813367,4.46584231,91.758,91.701,4.2680717]
[1772646813555,4.46584231,91.758,91.694,10.90580075]
[1772646814080,4.46584231,91.758,91.695,4.2680717]
[1772646815488,38.14339737,91.759,91.701,4.2680717]
[1772646815489,10.89835107,91.757,91.701,4.2680717]
[1772646815653,10.89692597,91.769,91.7,4.2680717]
[1772646815854,38.13924091,91.769,91.7,4.2680717]
[1772646816655,81.72694481,91.769,91.7,4.2680717]
[1772646816860,4.82477569,91.768,91.7,4.2680717]
[1772646817474,4.21572087,91.765,91.702,4.2680717]
[1772646820964,4.21572087,91.763,91.704,4.2680717]
[1772646823266,4.21572087,91.757,91.691,4.2680717]
[1772646823478,4.21572087,91.749,91.691,4.2680717]
[1772646825384,4.21572087,91.747,91.693,4.2680717]
[1772646828769,4.21572087,91.745,91.695,4.2370041]
[1772646831393,4.21572087,91.743,91.697,4.2370041]
[1772646833581,4.21572087,91.741,91.699,4.2370041]
[1772646835686,4.21572087,91.739,91.7,10.9051254]
[1772646835897,4.21572087,91.739,91.7,15.1421295]
[1772646836606,4.21572087,91.739,91.7,4.2370041]
[1772646836782,4.21572087,91.739,91.694,10.90572572]
[1772646836987,4.21572087,91.739,91.694,15.14272982]
[1772646837687,4.21572087,91.737,91.694,10.90572572]
[1772646837892,4.21572087,91.737,91.692,4.2370041]
[1772646838814,4.21572087,91.737,91.68,4.2370041]
[1772646839016,4.21572087,91.737,91.623,104.4]
[1772646839017,8.80704399,91.73,91.635,4.2370041]
[1772646839198,4.21572087,91.729,91.635,4.2370041]
[1772646839400,4.21572087,91.729,91.638,4.2370041]
[1772646839814,92.65517014,91.738,91.643,4.2370041]
[1772646839815,4.21572087,91.727,91.643,4.2370041]
[1772646841816,4.21572087,91.725,91.648,4.2370041]
[1772646842118,10.90139927,91.732,91.661,0.28432314]
[1772646842339,10.90139927,91.732,91.662,4.2370041]
[1772646842621,9.7578885,91.77,91.672,4.2370041]
[1772646842622,4.21572087,91.747,91.672,4.2370041]
[1772646843424,10.89858863,91.755,91.682,4.2370041]
[1772646843719,4.21572087,91.764,91.677,4.52132724]
[1772646843925,8.50598665,91.763,91.692,4.2370041]
[1772646844096,8.50598665,91.763,91.678,181.06852241]
[1772646844097,10.89699859,91.769,91.702,4.2370041]
[1772646844295,10.89467032,91.788,91.707,4.52132724]
[1772646844559,4.21572087,91.796,91.707,4.52132724]
[1772646844818,4.10519229,91.84,91.73,4.2370041]
[1772646844819,4.21572087,91.834,91.73,4.2370041]
[1772646844997,4.21572087,91.834,91.742,4.2370041]
[1772646845627,4.21572087,91.832,91.742,4.2370041]
[1772646846120,4.21572087,91.829,91.747,4.2370041]
[1772646847703,4.21572087,91.809,91.743,15.13701827]
[1772646847901,4.21572087,91.807,91.745,10.89977655]
[1772646848116,4.21572087,91.807,91.746,4.2370041]
[1772646850803,4.21572087,91.805,91.748,4.2370041]
[1772646851026,4.21572087,91.805,91.747,10.89953894]
[1772646851227,4.21572087,91.799,91.742,4.2370041]
[1772646851431,4.21572087,91.799,91.744,4.2370041]
[1772646852415,43.55162309,91.846,91.747,4.2370041]
[1772646852416,4.21572087,91.816,91.747,4.2370041]
[1772646852911,4.21572087,91.814,91.749,4.2370041]
[1772646853915,4.21572087,91.799,91.739,4.2370041]
[1772646854527,4.21572087,91.797,91.729,4.2370041]
[1772646854714,4.82477569,91.798,91.729,4.2370041]
[1772646854715,4.21572087,91.789,91.729,4.2370041]
[1772646854917,4.21572087,91.787,91.73,10.90155892]
[1772646855116,4.21572087,91.787,91.731,4.2370041]
[1772646855511,4.21572087,91.787,91.715,27.25809291]
[1772646855512,4.21572087,91.787,91.724,10.90216028]
[1772646855928,4.21572087,91.787,91.724,15.13916438]
[1772646856333,4.82477569,91.782,91.724,15.13916438]
[1772646856531,4.21572087,91.781,91.724,15.13916438]
[1772646856736,4.21572087,91.779,91.724,4.2370041]
[1772646857228,4.21572087,91.777,91.724,4.2370041]
[1772646857813,4.21572087,91.771,91.715,4.2370041]
[1772646858318,4.21572087,91.769,91.705,10.90453083]
[1772646858633,4.21572087,91.769,91.706,4.26103065]
[1772646859009,4.08284783,91.767,91.708,4.26103065]
[1772646859731,4.08284783,91.767,91.71,3.69383402]
[1772646859935,4.08284783,91.767,91.711,4.26103065]
[1772646861021,10.89650599,91.773,91.713,4.26103065]
[1772646861223,4.08284783,91.778,91.716,4.26103065]
[1772646863747,4.08284783,91.778,91.695,43.62245584]
[1772646863748,8.7961122,91.8,91.709,4.26103065]
[1772646863749,4.08284783,91.769,91.709,4.26103065]
[1772646865828,4.21572087,91.767,91.711,4.43998153]
[1772646868217,4.21572087,91.765,91.712,10.90369853]
[1772646868839,4.21572087,91.765,91.713,4.43998153]
[1772646870148,4.21572087,91.763,91.715,4.43998153]
[1772646871339,38.14131903,91.764,91.715,4.43998153]
[1772646871340,4.21572087,91.761,91.715,4.43998153]
[1772646872425,4.21572087,91.759,91.717,4.43998153]
[1772646873744,4.21572087,91.759,91.709,4.43998153]
[1772646874631,10.8982323,91.758,91.709,4.43998153]
[1772646874829,4.21572087,91.757,91.711,4.43998153]
[1772646876942,4.21572087,91.765,91.713,4.43998153]
[1772646879151,4.21572087,91.763,91.715,4.43998153]
[1772646881037,4.21572087,91.776,91.715,4.43998153]
[1772646881341,4.21572087,91.776,91.717,4.43998153]
[1772646883384,4.21572087,91.774,91.719,4.43998153]
[1772646885964,4.21572087,91.772,91.721,4.43998153]
[1772646887863,4.21572087,91.77,91.723,4.43998153]
[1772646889773,38.13840973,91.771,91.723,4.43998153]
[1772646889966,4.15006423,91.773,91.725,4.42523912]
[1772646892763,4.15006423,91.771,91.727,4.42523912]
[1772646894770,4.15006423,91.769,91.727,4.42523912]
[1772646895158,4.15006423,91.769,91.729,4.42523912]
[1772646897070,4.15006423,91.767,91.729,4.42523912]
[1772646899259,4.15006423,91.765,91.695,4.42523912]
[1772646901774,4.15006423,91.797,91.712,4.42523912]
[1772646902551,10.89348351,91.798,91.712,4.42523912]
[1772646902758,4.15006423,91.798,91.717,4.42523912]
[1772646904971,4.15006423,91.796,91.722,4.42523912]
[1772646907062,10.89170378,91.813,91.731,4.42523912]
[1772646907262,10.89170378,91.813,91.737,4.42523912]
[1772646907467,10.89170378,91.813,91.741,4.42523912]
[1772646909181,10.89170378,91.813,91.746,4.42523912]
[1772646910686,4.15006423,91.812,91.746,4.42523912]
[1772646911284,4.15006423,91.81,91.751,4.42523912]
[1772646912663,38.12179368,91.811,91.751,4.42523912]
[1772646912664,10.89194105,91.811,91.751,4.42523912]
[1772646914177,4.15006423,91.816,91.753,4.42523912]
[1772646916576,4.15006423,91.814,91.755,4.42523912]
[1772646917674,4.15006423,91.812,91.755,4.42523912]
[1772646917881,4.15006423,91.802,91.747,4.42523912]
[1772646918074,4.15006423,91.799,91.74,15.32549608]
[1772646918660,4.03343259,91.797,91.74,15.32549608]
[1772646918874,4.03343259,91.797,91.741,4.26020177]
[1772646919684,4.03343259,91.797,91.701,7.9]
[1772646919685,4.03343259,91.769,91.703,4.26020177]
[1772646919859,4.03343259,91.769,91.704,4.26020177]
[1772646920561,4.03343259,91.767,91.705,10.90453083]
[1772646920781,4.03343259,91.767,91.706,4.26020177]
[1772646921880,4.03343259,91.749,91.697,4.26020177]
[1772646922675,38.14797052,91.748,91.697,4.26020177]
[1772646922984,4.03343259,91.747,91.697,4.26020177]
[1772646923186,38.14797052,91.748,91.699,4.26020177]
[1772646924267,4.03343259,91.747,91.699,4.26020177]
[1772646924876,4.03343259,91.745,91.701,4.26020177]
[1772646926989,8.79784928,91.77,91.703,4.42581069]
[1772646926990,4.03889181,91.743,91.703,4.42581069]
[1772646927184,38.14963376,91.744,91.703,4.42581069]
[1772646927892,30.0,91.723,91.703,4.42581069]
[1772646929388,10.90250975,91.722,91.691,4.42581069]
[1772646929587,10.90250975,91.722,91.677,0.23873836]
[1772646929588,30.0,91.71,91.681,4.42581069]
[1772646930797,16.35393991,91.71,91.68,10.90750095]
[1772646932490,16.35393991,91.71,91.678,27.26935578]
[1772646932491,4.452182,91.709,91.677,0.23873836]
[1772646932670,4.452182,91.709,91.678,10.90774231]
[1772646932671,30.0,91.699,91.678,10.90774231]
[1772646933586,30.0,91.699,91.637,3.69383402]
[1772646933587,4.452182,91.696,91.637,3.69383402]
[1772646933777,30.0,91.691,91.637,3.69383402]
[1772646934384,30.0,91.691,91.634,136.41224871]
[1772646934585,4.452182,91.69,91.634,38.19542963]
[1772646934783,4.452182,91.685,91.637,3.69383402]
[1772646935298,4.452182,91.685,91.634,38.19542963]
[1772646935799,30.0,91.672,91.624,92.77045313]
[1772646936000,8.79784928,91.73,91.624,92.77045313]
[1772646936001,4.452182,91.705,91.625,0.28432314]
[1772646936298,4.452182,91.705,91.63,0.28432314]
[1772646938095,10.90644602,91.689,91.634,3.69383402]
[1772646938993,4.452182,91.692,91.634,3.69383402]
[1772646939195,15.3583778,91.691,91.634,3.69383402]
[1772646939496,10.9061958,91.691,91.634,11.59383402]
[1772646939680,4.452182,91.69,91.634,11.59383402]
[1772646939998,4.452182,91.69,91.638,3.69383402]
[1772646940203,4.452182,91.728,91.638,3.69383402]
[1772646941774,38.15670412,91.727,91.639,92.75526794]
[1772646941974,4.452182,91.726,91.639,92.75526794]
[1772646943099,4.452182,91.726,91.639,38.19334562]
[1772646943783,4.452182,91.724,91.639,38.19334562]
[1772646945395,4.452182,91.724,91.64,7.9]
[1772646946800,43.60748042,91.728,91.641,10.91214631]
[1772646946801,4.82477569,91.715,91.641,10.91214631]
[1772646946988,4.452182,91.706,91.641,10.91214631]
[1772646947799,4.452182,91.704,91.631,27.28325961]
[1772646948100,30.0,91.671,91.631,27.28325961]
[1772646948405,30.0,91.671,91.632,7.9]
[1772646949089,4.452182,91.673,91.632,7.9]
[1772646951303,4.452182,91.671,91.633,46.09584647]
[1772646952495,4.452182,91.69,91.633,100.66134143]
[1772646952695,4.452182,91.702,91.637,3.69383402]
[1772646953591,4.452182,91.7,91.641,3.69383402]
[1772646953797,4.452182,91.7,91.642,7.9]
[1772646954797,10.90524433,91.699,91.643,38.19167857]
[1772646954997,4.452182,91.698,91.643,38.19167857]
[1772646957002,4.452182,91.696,91.643,38.19167857]
[1772646957303,4.452182,91.696,91.643,46.09167857]
[1772646958583,4.452182,91.696,91.643,10.91190816]
[1772646958895,92.69659856,91.697,91.629,3.69383402]
[1772646958896,4.452182,91.694,91.629,3.69383402]
[1772646959206,4.452182,91.694,91.63,0.28432314]
[1772646959399,4.10876891,91.74,91.63,0.28432314]
[1772646959400,4.452182,91.706,91.635,0.28432314]
[1772646959604,4.452182,91.714,91.635,0.28432314]
[1772646960905,4.452182,91.712,91.64,0.28432314]
[1772646963012,4.452182,91.71,91.641,38.19251208]
[1772646965190,8.80468163,91.74,91.641,38.19251208]
[1772646965191,4.452182,91.708,91.642,7.9]
[1772646966693,38.16419325,91.709,91.626,10.91393272]
[1772646966694,4.452182,91.689,91.626,10.91393272]
[1772646967098,169.01285586,91.709,91.606,27.29063843]
[1772646967099,4.452182,91.667,91.606,27.29063843]
[1772646967298,4.452182,91.667,91.625,11.14027492]
[1772646967598,4.452182,91.667,91.625,0.2262288]
[1772646967799,30.0,91.665,91.625,0.2262288]
[1772646968016,4.452182,91.664,91.625,0.2262288]
[1772646968414,4.452182,91.664,91.62,0.2]
[1772646968797,4.452182,91.664,91.621,10.91452832]
[1772646969112,4.452182,91.659,91.621,10.91452832]
[1772646969298,4.452182,91.657,91.62,0.2]
[1772646969999,4.452182,91.653,91.62,0.2]
[1772646970390,54.53988235,91.677,91.62,0.2]
[1772646970391,4.452182,91.662,91.621,10.91452832]
[1772646970594,6.8743991,91.704,91.621,81.85896245]
[1772646970595,4.452182,91.67,91.621,81.85896245]